[Event "22nd Hogeschool Zeeland 2018"]
[Site "Vlissingen"]
[Date "2018.08.11"]
[Round "9"]
[White "Bressy, Theo"]
[Black "Admiraal, Miguoel"]
[Result "0-1"]
[ECO "B80"]
[WhiteElo "2140"]
[BlackElo "2479"]
[Annotator "ChessBase"]
[PlyCount "120"]
[EventDate "2018.08.04"]
[EventType "swiss"]
[EventCountry "NED"]
[SourceTitle "playchess.com"]
[Source "ChessBase"]
[SourceQuality "1"]
[TimeControl "40/5400+30:1800+30"]

1. e4 {[%emt 0:00:00]} c5 {[%emt 0:27:15]} 2. Nf3 {[%emt 0:00:00]} e6 {[%emt 0:00:08]} 3. d4 {[%emt 0:00:00]} cxd4 {[%emt 0:00:01]} 4. Nxd4 {[%emt 0:00:00]} Nc6 {[%emt 0:00:01]} 5. Nc3 {[%emt 0:00:00]} Qc7 {[%emt 0:00:01]} 6. g3 {[%emt 0:00:17]} a6 {[%emt 0:00:16]} 7. Bg2 {[%emt 0:00:10]} d6 {[%emt 0:06:42]} 8. O-O {[%emt 0:00:11]} Bd7 {[%emt 0:00:03]} 9. Nce2 {[%emt 0:05:43]} Nf6 {[%emt 0:02:11]} 10. b3 {[%emt 0:04:04]} Be7 {[%emt 0:03:16]} 11. Bb2 {[%emt 0:01:10]} O-O {[%emt 0:03:47]} 12. c4 {[%emt 0:00:14]} Rac8 {[%emt 0:02:35]} 13. h3 {[%emt 0:02:35]} Nxd4 {[%emt 0:05:39]} 14. Nxd4 {[%emt 0:00:38]} b5 {[%emt 0:01:26]} 15. cxb5 {[%emt 0:00:44]} axb5 {[%emt 0:00:11]} 16. a3 {[%emt 0:06:34]} Qb8 {[%emt 0:10:04]} 17. Qe2 {[%emt 0:07:31]} Rc5 {[%emt 0:01:17]} 18. Rfd1 {[%emt 0:02:29]} Rfc8 {[%emt 0:01:29]} 19. b4 {[%emt 0:02:38]} Rc4 {[%emt 0:00:52]} 20. Nb3 {[%emt 0:01:15]} Rc2 {[%emt 0:08:04]} 21. Rd2 {[%emt 0:00:29]} Rxd2 {[%emt 0:00:17]} 22. Qxd2 {[%emt 0:00:19]} Bc6 {[%emt 0:00:22]} 23. Qd3 {[%emt 0:14:52]} e5 {[%emt 0:01:33]} 24. Nd2 {[%emt 0:03:40]} h5 {[%emt 0:01:14]} 25. Nf1 {[%emt 0:04:53]} h4 {[%emt 0:00:22]} 26. g4 {[%emt 0:00:05]} Qb7 {[%emt 0:10:13]} 27. Re1 {[%emt 0:00:23]} g6 {[%emt 0:00:17]} 28. Kh2 {[%emt 0:17:20]} Nh7 {[%emt 0:01:33]} 29. Ne3 {[%emt 0:01:22]} Ng5 {[%emt 0:03:16]} 30. Nd5 {[%emt 0:01:36]} Ne6 {[%emt 0:00:07]} 31. Bc1 {[%emt 0:03:23]} Kg7 {[%emt 0:06:26]} 32. Rd1 {[%emt 0:07:32]} Bg5 {[%emt 0:01:21]} 33. Bxg5 {[%emt 0:01:57]} Nxg5 {[%emt 0:00:02]} 34. f4 {[%emt 0:00:38]} Ne6 {[%emt 0:00:32]} 35. f5 {[%emt 0:00:40]} Bxd5 {[%emt 0:01:15]} 36. fxe6 {[%emt 0:01:12]} Bxe6 {[%emt 0:00:14]} 37. Qxd6 {[%emt 0:00:11]} Qc7 {[%emt 0:00:15]} 38. Kg1 {[%emt 0:06:11]} Qxd6 {[%emt 0:00:47]} 39. Rxd6 {[%emt 0:00:01]} Rc1+ {[%emt 0:00:21]} 40. Kf2 {[%emt 0:00:09]} Rc2+ {[%emt 0:00:02]} 41. Kg1 {[%emt 0:30:39]} Bc4 {[%emt 0:13:07]} 42. g5 {[%emt 0:00:00]} Rc3 {[%emt 0:00:49]} 43. Ra6 {[%emt 0:00:00]} Rg3 {[%emt 0:01:22]} 44. Kf2 {[%emt 0:00:00]} Rxg5 {[%emt 0:01:06]} 45. Rc6 {[%emt 0:00:00]} Rg3 {[%emt 0:05:43]} 46. a4 {[%emt 0:00:00]} Rb3 {[%emt 0:00:07]} 47. axb5 {[%emt 0:00:00]} Rb2+ {[%emt 0:00:16]} 48. Kg1 {[%emt 0:00:00]} Bxb5 {[%emt 0:03:14]} 49. Rc5 {[%emt 0:00:00]} Rxb4 {[%emt 0:00:34]} 50. Rxe5 {[%emt 0:00:00]} Bc6 {[%emt 0:00:51]} 51. Rg5 {[%emt 0:00:00]} Bxe4 {[%emt 0:00:45]} 52. Rg4 {[%emt 0:00:00]} f5 {[%emt 0:01:04]} 53. Rxh4 {[%emt 0:00:00]} Rb1+ {[%emt 0:00:44]} 54. Bf1 {[%emt 0:00:00]} Bd3 {[%emt 0:01:43]} 55. Rf4 {[%emt 0:00:00]} Kf6 {[%emt 0:01:05]} 56. Kg2 {[%emt 0:00:00]} Bxf1+ {[%emt 0:00:11]} 57. Rxf1 {[%emt 0:00:00]} Rxf1 {[%emt 0:00:22]} 58. Kxf1 {[%emt 0:00:00]} Ke5 {[%emt 0:00:19]} 59. Kg2 {[%emt 0:00:00]} Kf4 {[%emt 0:00:18]} 60. Kf2 {[%emt 0:00:00]} g5 {[%emt 0:00:17]} 0-1

[Event "22nd Hogeschool Zeeland 2018"]
[Site "Vlissingen"]
[Date "2018.08.11"]
[Round "9"]
[White "Boelhouwer, Collin"]
[Black "Ree, Hans"]
[Result "1/2-1/2"]
[ECO "B01"]
[WhiteElo "2128"]
[BlackElo "2303"]
[Annotator "NA"]
[PlyCount "81"]
[EventDate "2018.08.04"]
[EventType "swiss"]
[EventCountry "NED"]
[SourceTitle "playchess.com"]
[Source "ChessBase"]
[SourceQuality "1"]
[TimeControl "40/5400+30:1800+30"]

1. e4 {[%emt 0:00:00]} d5 {[%emt 0:00:00]} 2. exd5 {[%emt 0:00:00]} Nf6 {[%emt 0:00:00]} 3. d4 {[%emt 0:00:20]} Bg4 {[%emt 0:00:00]} 4. Be2 {[%emt 0:00:19]} Bxe2 {[%emt 0:00:00]} 5. Qxe2 {[%emt 0:00:07]} Qxd5 {[%emt 0:00:06]} 6. Nf3 {[%emt 0:00:48]} e6 {[%emt 0:00:21]} 7. O-O {[%emt 0:01:16]} Nc6 {[%emt 0:01:55]} 8. Rd1 {[%emt 0:02:24]} O-O-O {[%emt 0:02:05]} 9. c4 {[%emt 0:04:28] B01: Scandinavian Defence} Qf5 {[%emt 0:02:24]} (9... Qh5 10. Nc3 Bd6 11. c5 Be7 12. Be3 Nd5 13. Rab1 Bf6 14. Ne4 Qg6 15. Ng3 h5 16. h3 Nxe3 17. Qxe3 Nxd4 18. Ne4 Nxf3+ 19. Qxf3 {0-1 (27) McShane,L (2651)-Vlassov,N (2476) playchess.com INT 2004}) 10. Nc3 {[%emt 0:02:22]} Rg8 {[%emt 0:02:20]} 11. Be3 {[%emt 0:11:07]} Be7 {[%emt 0:05:03]} 12. a3 {[%emt 0:01:39]} g5 {[%emt 0:03:12]} 13. b4 {[%emt 0:02:45]} g4 $146 {[%emt 0:00:08]} ({Predecessor:} 13... Ne4 14. Nxe4 Qxe4 15. Qd3 Qxd3 16. Rxd3 g4 17. Ne1 Bf6 {½-½ (30) Garcia Garcia,R (2260)-Piay Augusto,D (2289) Torrelavega 2002}) 14. Ne1 {[%emt 0:04:43]} Ne4 {[%emt 0:02:02]} 15. Qc2 {[%emt 0:05:40]} Nxc3 {[%emt 0:01:22]} 16. Qxc3 {[%emt 0:00:02]} Bf6 {[%emt 0:08:38]} 17. b5 {[%emt 0:01:43]} Ne7 {[%emt 0:00:15]} 18. a4 {[%emt 0:05:28]} Qe4 {[%emt 0:06:35]} 19. a5 {[%emt 0:04:44]} Nf5 {[%emt 0:00:16]} 20. Qc2 {[%emt 0:13:07]} Qxc2 {[%emt 0:01:39]} 21. Nxc2 {[%emt 0:00:02]} g3 {[%emt 0:07:38]} 22. Ra3 {[%emt 0:07:33]} (22. hxg3 $11 Nxe3 23. fxe3) 22... gxh2+ {[%emt 0:03:15]} 23. Kxh2 {[%emt 0:00:32]} Rg4 $15 {[%emt 0:04:02]} 24. a6 {[%emt 0:10:39]} b6 {[%emt 0:01:41]} 25. Rad3 {[%emt 0:01:32]} Rdg8 {[%emt 0:00:32]} 26. g3 {[%emt 0:04:06]} h5 {[%emt 0:01:35]} 27. Bf4 {[%emt 0:01:25]} Be7 {[%emt 0:02:41]} 28. Ne3 {[%emt 0:01:25]} Nxe3 {[%emt 0:00:19]} 29. Rxe3 {[%emt 0:00:21]} Bd6 {[%emt 0:02:14]} 30. Bxd6 {[%emt 0:02:28]} cxd6 {[%emt 0:00:02]} 31. c5 {[%emt 0:00:11]} dxc5 {[%emt 0:01:51]} 32. dxc5 {[%emt 0:00:01]} bxc5 {[%emt 0:00:35]} 33. Re5 {[%emt 0:05:07]} R4g5 {[%emt 0:01:37]} 34. Rxg5 {[%emt 0:00:38]} Rxg5 {[%emt 0:00:02]} 35. b6 {[%emt 0:00:07]} axb6 {[%emt 0:00:17]} 36. Rd8+ {[%emt 0:00:01]} Kxd8 {[%emt 0:00:44]} 37. a7 {[%emt 0:00:02]} Rf5 {[%emt 0:00:14]} 38. a8=Q+ {[%emt 0:00:06]} Kc7 {[%emt 0:00:04]} 39. f3 {[%emt 0:03:00]} c4 {[%emt 0:00:35]} 40. Qa3 {[%emt 0:02:53]} b5 {[%emt 0:02:28]} 41. f4 {[%emt 0:34:10]} 1/2-1/2